bitfinex-derivatives/quotes_ETHF0:USTF0_20250422
["timestamp","ask_amount","ask_price","bid_price","bid_amount"]
[1745313417323,4.43871,1625.0,1624.8,1.23098]
[1745313417528,6.3577,1625.1,1624.9,1.23094]
[1745313417827,6.7716,1625.1,1625.0,4.72516]
[1745313418125,8.00239,1625.1,1625.0,4.72516]
[1745313418722,8.00239,1625.1,1625.0,3.4943]
[1745313419428,8.00239,1625.1,1625.0,4.72516]
[1745313419620,8.00239,1625.1,1625.0,3.4943]
[1745313420623,6.7716,1625.1,1625.0,4.72516]
[1745313421131,6.7716,1625.1,1625.0,11.04716]
[1745313421331,8.00239,1625.1,1625.0,11.04716]
[1745313421534,8.00239,1625.1,1625.0,9.8163]
[1745313421725,8.00239,1625.1,1625.0,11.04716]
[1745313422230,8.00239,1625.1,1625.0,4.72516]
[1745313423131,8.00239,1625.1,1625.0,2.92696]
[1745313423325,8.00239,1625.1,1625.0,1.6961]
[1745313424233,8.00239,1625.1,1625.0,8.0181]
[1745313425033,8.00239,1625.1,1625.0,9.24896]
[1745313425235,8.00239,1625.1,1625.0,2.92696]
[1745313425835,5.9307,1625.1,1625.0,2.92696]
[1745313426133,5.9307,1625.1,1625.0,10.98506]
[1745313426732,5.9307,1625.1,1625.0,9.7542]
[1745313426936,7.16149,1625.1,1625.0,10.98506]
[1745313427134,7.16149,1625.1,1625.0,4.66306]
[1745313429233,8.02529,1625.1,1625.0,2.92696]
[1745313430039,6.7945,1625.1,1625.0,2.92696]
[1745313430237,6.7945,1625.1,1625.0,9.24896]
[1745313430437,5.9307,1625.1,1625.0,9.24896]
[1745313430639,5.9307,1625.1,1625.0,11.05186]
[1745313431033,7.16149,1625.1,1625.0,11.05186]
[1745313431234,7.16149,1625.1,1625.0,3.499]
[1745313431835,7.16149,1625.1,1625.0,1.23086]
[1745313432142,1.23094,1624.9,1624.8,2.97901]
[1745313432646,1.23094,1624.9,1624.8,4.67621]
[1745313433148,3.03073,1625.0,1624.8,4.67621]
[1745313433649,1.7998,1624.9,1624.8,4.67621]
[1745313435345,1.7998,1624.9,1624.8,2.11731]
[1745313435546,3.03074,1624.9,1624.8,2.11731]
[1745313436450,3.03074,1624.9,1624.8,3.85191]
[1745313436952,3.03074,1624.9,1624.8,7.05971]
[1745313439263,3.03074,1624.9,1624.8,3.85191]
[1745313440954,1.23101,1624.8,1624.7,3.2078]
[1745313441153,1.23117,1624.6,1624.5,4.43904]
[1745313441456,1.23117,1624.6,1624.5,7.02704]
[1745313441655,1.23117,1624.6,1624.5,3.81924]
[1745313441859,4.67274,1624.7,1624.5,3.81924]
[1745313442155,1.7165,1624.6,1624.5,3.81924]
[1745313442751,2.94767,1624.6,1624.5,0.9049]
[1745313442956,1.7165,1624.6,1624.5,2.13614]
[1745313445358,1.7165,1624.6,1624.5,3.85374]
[1745313445858,2.94767,1624.6,1624.5,3.85374]
[1745313446367,1.7165,1624.6,1624.5,2.13614]
[1745313446657,2.94767,1624.6,1624.5,2.13614]
[1745313446848,1.7165,1624.6,1624.5,2.13614]
[1745313447951,4.282,1624.7,1624.6,1.23117]
[1745313448159,4.282,1624.7,1624.6,2.92197]
[1745313448360,1.23102,1624.8,1624.7,1.23105]
[1745313448562,1.23101,1624.8,1624.7,1.23105]
[1745313448860,3.03281,1624.8,1624.7,1.23105]
[1745313449862,3.03281,1624.8,1624.6,1.23111]
[1745313450162,1.8018,1624.7,1624.6,1.23111]
[1745313450466,1.8018,1624.7,1624.6,2.89121]
[1745313451161,5.51299,1624.9,1624.7,1.23104]
[1745313451462,1.23101,1624.8,1624.7,3.79254]
[1745313451661,2.98141,1624.8,1624.7,2.13244]
[1745313452163,1.23097,1624.9,1624.7,8.45444]
[1745313452362,2.98137,1624.9,1624.7,8.45444]
[1745313452564,1.7504,1624.8,1624.7,8.45444]
[1745313452764,2.98141,1624.8,1624.7,8.45444]
[1745313453065,1.7504,1624.8,1624.7,8.45444]
[1745313453455,2.98141,1624.8,1624.7,7.2234]
[1745313453660,2.98141,1624.8,1624.7,6.322]
[1745313454163,1.23113,1624.7,1624.5,6.20291]
[1745313454362,4.56073,1624.7,1624.5,6.20291]
[1745313454558,4.56073,1624.7,1624.3,1.23134]
[1745313454559,1.23127,1624.5,1624.3,1.23134]
[1745313454758,1.23127,1624.5,1624.3,2.11524]
[1745313454957,1.6424,1624.4,1624.3,2.11524]
[1745313455158,1.6424,1624.4,1624.3,3.75184]
[1745313455668,2.87372,1624.4,1624.3,2.5205]
[1745313455868,1.23139,1624.3,1624.2,40.80474113]
[1745313456166,4.54289,1624.3,1624.2,40.80474113]
[1745313456559,4.64914982,1624.3,1624.2,40.80474113]
[1745313456954,9.82e-06,1624.3,1624.2,9.44401113]
[1745313457160,2.99026,1624.9,1624.6,1.23111]
[1745313457359,0.8985,1625.0,1624.7,1.23109]
[1745313457360,1.7593,1624.8,1624.7,1.23109]
[1745313457661,1.7593,1624.8,1624.7,42.03109]
[1745313458266,1.7593,1624.8,1624.7,50.06109]
[1745313459168,1.7593,1624.8,1624.7,47.9441]
[1745313460166,2.99031,1624.8,1624.7,40.8]
[1745313460968,1.7593,1624.8,1624.7,40.8]
[1745313461371,2.99031,1624.8,1624.7,40.8]
[1745313461571,1.7593,1624.8,1624.7,41.6704]
[1745313461868,1.23128,1624.5,1624.2,1.23615113]
[1745313462169,6.0765,1624.4,1624.3,2.10179]
[1745313462367,6.0765,1624.4,1624.3,44.66079]
[1745313462566,6.0765,1624.4,1624.3,43.4294]
[1745313462766,6.0765,1624.4,1624.3,41.6704]
[1745313462967,6.9135,1624.4,1624.3,41.6704]
[1745313463267,6.0765,1624.4,1624.3,42.90179]
[1745313463467,6.0765,1624.4,1624.3,44.68789]
[1745313464363,1.7945,1624.4,1624.3,44.68789]
[1745313465471,4.282,1624.5,1624.4,1.23132]
[1745313465672,6.0022,1624.5,1624.4,3.00122]
[1745313466173,4.282,1624.6,1624.5,1.23124]
[1745313466360,4.282,1624.6,1624.5,7.04524]
[1745313466974,4.282,1624.6,1624.5,46.614]
[1745313467177,4.282,1624.6,1624.5,54.16724]
[1745313467673,6.0022,1624.6,1624.5,54.16724]
[1745313468867,6.0022,1624.6,1624.5,50.95944]
[1745313471372,10.44117,1624.6,1624.5,47.122]
[1745313471573,7.23337,1624.6,1624.5,47.122]
[1745313472276,7.23337,1624.6,1624.5,40.8]
[1745313472776,6.0022,1624.6,1624.5,40.8]
[1745313472980,6.0022,1624.6,1624.5,42.03124]
[1745313473373,7.23337,1624.6,1624.5,40.8]
[1745313476079,2.95137,1624.6,1624.5,40.8]
[1745313476380,7.22937,1624.6,1624.5,40.8]
[1745313478874,5.9982,1624.6,1624.5,43.75054]
[1745313479069,7.22937,1624.6,1624.5,50.07254]
[1745313479277,5.9982,1624.6,1624.5,50.07254]
[1745313481983,7.22937,1624.6,1624.5,47.122]
[1745313482174,7.638,1624.6,1624.3,2.97078]
[1745313482473,1.6834,1624.5,1624.3,2.97078]
[1745313482773,1.23132,1624.4,1624.3,2.97078]
[1745313482981,1.23132,1624.4,1624.3,1.7394]
[1745313483168,1.23132,1624.4,1624.3,42.5394]
[1745313483372,1.23132,1624.4,1624.3,43.77079]
[1745313483982,1.23132,1624.4,1624.3,42.5394]
[1745313484175,1.23132,1624.4,1624.3,41.6704]
[1745313484371,1.23132,1624.4,1624.3,40.8]
[1745313484591,2.9147,1624.5,1624.3,45.48237]
[1745313484773,2.9147,1624.5,1624.4,1.7142]
[1745313485082,2.9147,1624.5,1624.4,8.0362]
[1745313486081,2.9147,1624.5,1624.4,1.7142]
[1745313486678,1.23139,1624.3,1624.2,0.00474113]
[1745313486881,8.71719,1624.3,1624.2,0.00474113]
[1745313487182,13.71719,1624.3,1624.2,1.13e-06]
[1745313487384,1.23177,1623.8,1623.7,9.0798685]
[1745313487585,5.50977,1623.8,1623.7,9.07288696]
[1745313488084,4.278,1623.8,1623.7,11.99703696]
[1745313488284,4.278,1623.8,1623.7,18.31903696]
[1745313489687,5.9899,1623.8,1623.7,18.31903696]
[1745313489884,4.278,1623.8,1623.7,18.31903696]
[1745313491582,4.278,1623.8,1623.7,10.09905]
[1745313492181,1.24093196,1623.9,1623.7,10.09905]
[1745313492382,1.24093196,1623.9,1623.8,42.447]
[1745313492681,3.02883196,1623.9,1623.8,42.447]
[1745313493392,3.02883196,1623.9,1623.8,40.8]
[1745313493578,0.00922196,1623.9,1623.8,42.03177]
[1745313493779,0.00922196,1623.9,1623.8,47.03577]
[1745313494182,0.00922196,1623.9,1623.8,52.03577]
[1745313495081,1e-08,1623.9,1623.8,52.03577]
[1745313499694,1e-08,1623.9,1623.8,47.03577]
[1745313507096,1e-08,1623.9,1623.8,52.03577]
[1745313507293,100.17857,1624.7,1624.4,1.23125]
[1745313507294,93.893,1624.7,1624.4,1.23125]
[1745313507592,5.50599,1624.9,1624.5,6.28581]
[1745313507796,6.36159,1624.9,1624.8,1.23101]
[1745313508096,6.36159,1624.9,1624.8,42.03101]
[1745313508288,11.36159,1624.9,1624.8,42.03101]
[1745313508489,10.1306,1624.9,1624.8,42.03101]
[1745313508889,13.06444,1624.9,1624.8,42.03101]
[1745313509089,8.06444,1624.9,1624.8,42.03101]
[1745313509797,6.8335,1624.9,1624.8,42.03101]
[1745313510300,8.06444,1624.9,1624.8,42.03101]
[1745313510597,6.8335,1624.9,1624.8,42.03101]
[1745313510799,7.7229,1624.9,1624.8,42.03101]
[1745313511495,7.7229,1624.9,1624.8,40.8]
[1745313511701,7.7229,1624.9,1624.8,42.03101]
[1745313513200,6.8673,1624.9,1624.8,42.03101]
[1745313515004,8.09824,1624.9,1624.8,40.8]
[1745313515897,16.30604,1624.9,1624.8,40.8]
[1745313516802,1.23101,1624.8,1624.7,0.00922196]
[1745313517003,3.70981,1624.8,1624.7,0.00922196]
[1745313517304,3.70981,1624.8,1624.7,40.80922196]
[1745313522205,3.70981,1624.8,1624.7,47.13122196]
[1745313524097,3.70981,1624.8,1624.7,40.80922196]
[1745313528203,3.70981,1624.8,1624.7,47.13122196]
[1745313531915,2.87821,1624.8,1624.7,47.13122196]
[1745313532207,1.6472,1624.8,1624.7,48.36231196]
[1745313532400,1.6472,1624.8,1624.7,50.02651196]
[1745313532809,2.87821,1624.8,1624.7,50.02651196]
[1745313533009,2.87821,1624.8,1624.7,48.79542196]
[1745313534015,6.08601,1624.8,1624.7,47.13122196]
[1745313534203,6.08601,1624.8,1624.7,40.80922196]
[1745313534915,6.08601,1624.8,1624.7,2e-08]
[1745313535104,11.08601,1624.8,1624.7,2e-08]
[1745313535411,11.1915555,1624.8,1624.7,2e-08]
[1745313539008,11.1915629,1624.8,1624.7,2e-08]
[1745313540110,17.5135629,1624.8,1624.7,2e-08]
[1745313543605,17.40801,1624.8,1624.7,2e-08]
[1745313543811,17.5135737,1624.8,1624.7,2e-08]
[1745313544818,1.23162,1624.0,1623.9,1.7701]
[1745313545012,8.71042,1624.0,1623.9,1.76311846]
[1745313545921,10.38972,1624.0,1623.9,1.76311846]
[1745313546117,10.38972,1624.0,1623.9,8.08511846]
[1745313547307,1.2317,1623.9,1623.8,0.83312196]
[1745313547511,2.911,1623.9,1623.8,0.83312196]
[1745313548620,2.911,1623.9,1623.8,0.00922196]
[1745313550915,3.01660745,1623.9,1623.8,0.00922196]
[1745313552317,3.01661282,1623.9,1623.8,0.00922196]
[1745313553013,8.01661282,1623.9,1623.8,1.96e-06]
[1745313553212,9.84300192,1623.9,1623.8,1.96e-06]
[1745313553615,7.28861282,1623.9,1623.8,1.96e-06]
[1745313554523,7.183,1623.9,1623.8,1.96e-06]
[1745313555012,7.183,1623.9,1623.8,1.78970196]
[1745313555213,7.183,1623.9,1623.8,2.67320196]
[1745313556819,2.911,1623.9,1623.8,2.67320196]
[1745313557019,5.5037,1623.9,1623.8,2.67320196]
[1745313557419,8.7115,1623.9,1623.8,2.67320196]
[1745313560322,5.5037,1623.9,1623.8,2.67320196]
[1745313560618,8.7115,1623.9,1623.8,2.67320196]
[1745313562816,8.7115,1623.9,1623.8,1.96e-06]
[1745313563027,8.81711023,1623.9,1623.8,1.96e-06]
[1745313563326,13.81711023,1623.9,1623.8,1.96e-06]
[1745313563623,15.54641023,1623.9,1623.8,1.96e-06]
[1745313564028,10.54641023,1623.9,1623.8,1.96e-06]
[1745313564227,12.4908,1623.9,1623.8,1.96e-06]
[1745313564527,16.86541308,1623.9,1623.8,1.96e-06]
[1745313565121,8.81411308,1623.9,1623.8,1.96e-06]
[1745313565321,8.81411308,1623.9,1623.8,1.67970196]
[1745313565618,8.7085,1623.9,1623.8,1.67970196]
[1745313568328,5.5007,1623.9,1623.8,1.67970196]
[1745313568529,8.7085,1623.9,1623.8,1.67970196]
[1745313568915,5.5007,1623.9,1623.8,1.67970196]
[1745313571029,5.50980196,1624.1,1623.9,1.23166]
[1745313571231,5.50976196,1624.1,1624.0,2.5983]
[1745313571528,4.27822196,1624.1,1624.0,4.72022]
[1745313572125,4.27822196,1624.1,1624.0,11.04222]
[1745313572337,4.27822196,1624.1,1624.0,51.84222]
[1745313573632,5.50976196,1624.1,1624.0,50.6106]
[1745313573935,7.27356196,1624.1,1624.0,50.6106]
[1745313574135,7.27356196,1624.1,1624.0,44.2886]
[1745313574728,7.27356196,1624.1,1624.0,42.5285]
[1745313575132,7.27356196,1624.1,1624.0,7.2123]
[1745313575322,10.48136196,1624.1,1624.0,6.322]
[1745313575731,10.58695223,1624.1,1624.0,6.322]
[1745313576137,1.2317,1623.9,1623.8,40.80000196]
[1745313576734,2.8936,1623.9,1623.8,40.80000196]
[1745313579733,6.1014,1623.9,1623.8,40.80000196]
[1745313580232,11.1014,1623.9,1623.8,1.96e-06]
[1745313580432,11.1014,1623.9,1623.3,3.4003]
[1745313580433,1.23208,1623.4,1623.3,3.4003]
[1745313580642,1.23208,1623.4,1623.3,44.2003]
[1745313581134,2.99138,1623.4,1623.3,40.8]
[1745313582339,6.19918,1623.4,1623.3,40.8]
[1745313583042,2.99138,1623.4,1623.3,40.8]
[1745313583242,1.7593,1623.4,1623.3,40.8]
[1745313583447,2.99138,1623.4,1623.3,40.8]
[1745313584444,16.45925128,1623.4,1623.3,40.8]
[1745313585946,13.25145128,1623.4,1623.3,40.8]
[1745313586238,10.26007128,1623.4,1623.3,45.23995]
[1745313586448,10.26007128,1623.4,1623.3,42.03215]
[1745313586643,10.26007128,1623.4,1623.3,46.95035]
[1745313588234,11.49215128,1623.4,1623.3,45.7182]
[1745313588440,13.15825128,1623.4,1623.3,45.7182]
[1745313588747,2.89818,1623.4,1623.3,45.7182]
[1745313589042,2.89818,1623.4,1623.3,44.0078]
[1745313590443,2.89818,1623.4,1623.3,45.8139]
[1745313592153,1.6661,1623.4,1623.3,45.8139]
[1745313592549,2.89818,1623.4,1623.3,45.8139]
[1745313593549,2.89818,1623.4,1623.3,44.0078]
[1745313593751,6.10598,1623.4,1623.3,40.8]
[1745313594750,1.23215,1623.3,1623.2,0.00224042]
[1745313594951,3.89805,1623.3,1623.2,0.00224042]
[1745313595151,3.89805,1623.3,1623.2,40.80224042]
[1745313596141,3.89805,1623.3,1623.2,47.12424042]
[1745313596348,4.79305,1623.3,1623.2,47.12424042]
[1745313597252,4.79305,1623.3,1623.2,40.80224042]
[1745313597444,4.79305,1623.3,1623.2,0.00224042]
[1745313597643,4.89868996,1623.3,1623.2,0.00224042]
[1745313601154,4.79305,1623.3,1623.2,0.00224042]
[1745313601460,9.89863913,1623.3,1623.2,0.00224042]
[1745313602054,9.89854458,1623.3,1623.2,0.00224042]
[1745313603649,3.08097,1623.0,1622.7,0.8631]
[1745313603953,1.23265,1622.7,1622.5,2.5493]
[1745313604149,1.23261,1622.7,1622.6,43.3104]
[1745313604353,6.8279,1622.9,1622.6,48.3104]
[1745313604650,4.267,1622.8,1622.7,2.89181]
[1745313604854,7.4748,1623.2,1623.0,1.23235]
[1745313605056,8.70705,1623.2,1623.1,3.4005]
[1745313606155,5.49925,1623.2,1623.1,3.4005]
[1745313606646,7.29105,1623.2,1623.1,3.4005]
[1745313608554,4.267,1623.2,1623.1,3.4005]
[1745313609057,4.267,1623.2,1623.1,4.6328]
[1745313609453,4.267,1623.2,1623.1,9.6328]
[1745313609952,0.00922196,1623.3,1623.2,1.23223]
[1745313610252,0.00922196,1623.3,1623.2,9.24063]
[1745313610651,1.24137196,1623.3,1623.2,8.0084]
[1745313611551,2.93417196,1623.3,1623.2,8.0084]
[1745313612254,2.93417196,1623.3,1623.2,1.6864]
[1745313613445,1.24137196,1623.3,1623.2,1.6864]
[1745313613847,0.00922196,1623.3,1623.2,2.91863]
[1745313614158,0.00922196,1623.3,1623.2,9.24063]
[1745313614455,0.00922196,1623.3,1623.2,8.0084]
[1745313614852,0.00922196,1623.3,1623.2,9.24063]
[1745313622757,1.24137196,1623.3,1623.2,8.0084]
[1745313623161,3.04887196,1623.3,1623.2,8.0084]
[1745313623967,3.04887196,1623.3,1623.2,9.24063]
[1745313625159,1.81672196,1623.3,1623.2,9.24063]
[1745313625464,0.00922196,1623.3,1623.2,9.24063]
[1745313630363,1.24137196,1623.3,1623.2,8.0084]
[1745313630564,2.91087196,1623.3,1623.2,8.0084]
[1745313630866,1.67872196,1623.3,1623.2,9.24063]
[1745313632066,2.91087196,1623.3,1623.2,8.0084]
[1745313632257,1.67872196,1623.3,1623.2,9.24063]
[1745313633365,2.91087196,1623.3,1623.2,8.0084]
[1745313633665,3.72847196,1623.3,1623.2,6.322]
[1745313634258,2.49632196,1623.3,1623.2,6.322]
[1745313634458,2.49632196,1623.3,1623.2,7.9907]
[1745313634959,3.72847196,1623.3,1623.2,7.9907]
[1745313635459,1.64017133,1623.4,1623.3,1.23215]
[1745313635665,1.33e-06,1623.4,1623.3,7.16485]
[1745313635861,12.35420141,1623.9,1623.8,1.23177]
[1745313636364,14.06370141,1623.9,1623.8,1.23177]
[1745313636666,15.29540141,1623.9,1623.8,1.7885]
[1745313636965,14.06370141,1623.9,1623.8,3.02027]
[1745313637358,14.06370141,1623.9,1623.8,43.82027]
[1745313637963,12.35420141,1623.9,1623.8,43.82027]
[1745313638363,0.00922196,1624.0,1623.9,1.2317]
[1745313638558,0.00922196,1624.0,1623.9,3.0202]
[1745313638758,1.78992196,1624.0,1623.9,3.0202]
[1745313638968,1.78992196,1624.0,1623.9,3.8373]
[1745313639164,3.02154196,1624.0,1623.9,10.1593]
[1745313639361,1.78992196,1624.0,1623.9,10.1593]
[1745313639566,3.02154196,1624.0,1623.9,8.9276]
[1745313639757,3.02154196,1624.0,1623.9,10.1593]
[1745313639959,1.78992196,1624.0,1623.9,10.1593]
[1745313643469,0.00922196,1624.0,1623.9,10.1593]
[1745313643768,0.00922196,1624.0,1623.9,13.3671]
[1745313644163,0.00922196,1624.0,1623.9,54.1671]
[1745313644369,0.00922196,1624.0,1623.9,59.1671]
[1745313645166,0.00922196,1624.0,1623.9,63.89684592]
[1745313645768,1.96e-06,1624.0,1623.9,63.89684592]
[1745313646874,1.22236,1624.3,1624.2,1.23147]
[1745313647071,1.21537846,1624.3,1624.2,8.70227]
[1745313647274,1.21537846,1624.3,1624.2,20.02427]
[1745313650773,8.46e-06,1624.3,1624.2,20.02427]
[1745313650975,8.46e-06,1624.3,1624.2,20.51881503]
[1745313653076,8.46e-06,1624.3,1624.2,21.41971503]
[1745313653577,8.46e-06,1624.3,1624.2,16.41971503]
[1745313656382,4.2e-07,1624.4,1624.3,1.23139]
[1745313656568,2.6239,1625.0,1624.7,1.23109]
[1745313656771,1.7897,1624.9,1624.8,1.23101]
[1745313657177,1.7897,1624.9,1624.8,42.03101]
[1745313659480,1.7897,1624.9,1624.8,44.61811]
[1745313663188,1.69412196,1625.0,1624.9,1.23094]
[1745313663382,0.84342196,1625.0,1624.9,6.21124]
[1745313663985,0.84342196,1625.0,1624.9,47.01124]
[1745313664186,2.62382196,1625.0,1624.9,53.33324]
[1745313664485,2.62382196,1625.0,1624.9,51.56074]
[1745313667288,12.06248196,1625.0,1624.9,6.322]
[1745313667486,12.06248196,1625.0,1624.9,0.884]
[1745313667675,1.23132,1624.4,1624.3,4.7398]
[1745313667877,1.23127,1624.5,1624.3,5.97115]
[1745313668175,1.23132,1624.4,1624.3,3.2078]
[1745313668386,1.23128,1624.5,1624.3,1.23139]
[1745313668582,13.69501,1624.6,1624.4,1.23132]
[1745313668782,13.69501,1624.6,1624.1,3.11964]
[1745313668783,7.4638,1624.6,1624.5,42.03124]
[1745313669179,12.4638,1624.6,1624.5,48.35324]
[1745313669385,13.69497,1624.6,1624.5,47.122]
[1745313670191,13.69497,1624.6,1624.5,40.8]
[1745313671183,14.1358,1624.6,1624.5,40.8]
[1745313671383,5.928,1624.6,1624.5,42.03124]
[1745313671593,4.44790196,1625.0,1624.8,1.23097]
[1745313671790,3.3898,1624.9,1624.8,1.23097]
[1745313673296,4.62074,1624.9,1624.7,7.55303]
[1745313673499,1.7334,1624.8,1624.7,7.55303]
[1745313673989,1.7334,1624.8,1624.7,6.322]
[1745313674193,2.96441,1624.8,1624.7,6.322]
[1745313675087,1.23109,1624.7,1624.6,3.2078]
[1745313675284,1.23117,1624.6,1624.5,40.8]
[1745313675685,2.96457,1624.6,1624.5,40.8]
[1745313676190,2.96457,1624.6,1624.5,47.122]
[1745313677094,2.96457,1624.6,1624.5,40.8]
[1745313679896,6.7334,1624.6,1624.3,3.21702196]
[1745313680086,1.23132,1624.4,1624.3,0.00922196]
[1745313680396,1.23132,1624.4,1624.3,40.80922196]
[1745313680593,3.01792,1624.4,1624.3,40.80922196]
[1745313682890,7.27492,1624.4,1624.3,40.80922196]
[1745313683195,12.27492,1624.4,1624.3,0.00922196]
[1745313684197,7.27492,1624.4,1624.3,0.00922196]
[1745313685695,5.48832,1624.4,1624.3,0.00922196]
[1745313685895,5.48832,1624.4,1624.3,2.64742196]
[1745313687090,7.28222,1624.4,1624.3,2.64742196]
[1745313687595,7.28222,1624.4,1624.3,0.00922196]
[1745313689701,7.28222,1624.4,1624.3,1.75452196]
[1745313694412,7.28222,1624.4,1624.3,2.61822196]
[1745313695712,7.28222,1624.4,1624.3,0.00922196]
[1745313698208,7.28222,1624.4,1624.3,2.63682196]
[1745313699116,7.28222,1624.4,1624.3,0.00922196]
[1745313707314,12.28222,1624.4,1624.3,0.00922196]
[1745313707516,12.49315593,1624.4,1624.3,1.96e-06]
[1745313707714,1.23147,1624.2,1624.1,0.02618]
[1745313707917,4.54473655,1624.2,1624.1,0.01919846]
[1745313708222,9.54473655,1624.2,1624.1,0.01919846]
[1745313708413,11.24313655,1624.2,1624.1,0.01919846]
[1745313708609,6.24313655,1624.2,1624.1,0.01919846]
[1745313708915,6.13767,1624.2,1624.1,0.01919846]
[1745313709115,6.24313961,1624.2,1624.1,0.01919846]
[1745313710329,8.69427,1624.2,1624.1,0.01919846]
[1745313711128,8.69427,1624.2,1624.1,0.88949846]
[1745313711823,8.69427,1624.2,1624.1,2.53409846]
[1745313712829,8.69427,1624.2,1624.1,3.43009846]
[1745313716524,8.69427,1624.2,1624.1,2.53409846]
[1745313716725,8.79985409,1624.2,1624.1,0.88949846]
[1745313716925,10.52325409,1624.2,1624.1,0.88949846]
[1745313717135,9.63865338,1624.2,1624.1,0.88949846]
[1745313717433,9.63865338,1624.2,1624.1,2.57809846]
[1745313717633,9.63865338,1624.2,1624.1,0.01919846]
[1745313717832,10.52325338,1624.2,1624.1,0.01919846]
[1745313721633,10.52318113,1624.2,1624.1,0.01919846]
[1745313721832,10.41767,1624.2,1624.1,0.01919846]
[1745313722028,10.5231733,1624.2,1624.1,0.01919846]
[1745313723337,15.5231733,1624.2,1624.1,0.01919846]
[1745313723638,10.5231733,1624.2,1624.1,0.01919846]
[1745313724032,1.23154,1624.1,1624.0,0.00922195]
[1745313724237,3.1290433,1624.1,1624.0,0.00922195]
[1745313728232,3.12904769,1624.1,1624.0,0.00922195]
[1745313728737,6.33684769,1624.1,1624.0,0.00922195]
[1745313729740,17.9843565,1624.1,1624.0,1.95e-06]
[1745313730037,1.23192,1623.6,1623.5,2.6302]
[1745313730238,8.69272,1623.6,1623.5,2.6302]
[1745313732532,1.23208,1623.4,1623.3,0.8613]
[1745313732738,4.43988,1623.4,1623.3,2.5287]
[1745313739748,1.23208,1623.4,1623.3,2.5287]
[1745313740043,4.43977,1623.6,1623.4,1.23207]
[1745313740240,4.43977,1623.6,1623.5,1.7524]
[1745313740440,4.43977,1623.6,1623.5,2.6081]
[1745313740646,1.23197,1623.6,1623.5,2.6081]
[1745313741249,1.23197,1623.6,1623.5,8.9301]
[1745313742246,4.43977,1623.6,1623.5,8.9301]
[1745313743243,1.23197,1623.6,1623.5,8.9301]
[1745313744147,5.49510196,1623.7,1623.5,8.9301]
[1745313744349,5.49510196,1623.7,1623.6,2.694]
[1745313750055,0.00922196,1623.7,1623.6,8.92592]
[1745313751048,0.00922196,1623.7,1623.6,3.92592]
[1745313751250,1.24107196,1623.7,1623.6,7.13372]
[1745313753551,1.24107196,1623.7,1623.6,5.9018]
[1745313754453,1.24107196,1623.7,1623.6,7.13372]
[1745313754959,0.00922196,1623.7,1623.6,7.13372]
[1745313755760,1.24107196,1623.7,1623.6,7.13372]
[1745313757858,0.00922196,1623.7,1623.6,7.13372]
[1745313760651,1.24107196,1623.7,1623.6,3.92592]
[1745313760859,1.24107196,1623.7,1623.6,2.694]
[1745313761865,1.24107196,1623.7,1623.6,3.92592]
[1745313762071,1.24107196,1623.7,1623.6,2.694]
[1745313762464,1.23192,1623.6,1623.5,0.8557]
[1745313762666,8.68972,1623.6,1623.5,0.8557]
[1745313763866,8.68972,1623.6,1623.5,2.5538]
[1745313764666,8.68972,1623.6,1623.5,3.7858]
[1745313764853,7.4578,1623.6,1623.5,3.7858]
[1745313765366,8.68972,1623.6,1623.5,2.5538]
[1745313765755,8.68972,1623.6,1623.5,3.7858]
[1745313765959,8.68972,1623.6,1623.5,2.5538]
[1745313768668,8.68972,1623.6,1623.5,1.6981]
[1745313768855,6.31962,1623.6,1623.5,1.6981]
[1745313769060,9.52742,1623.6,1623.5,1.6981]
[1745313773467,1.23208,1623.4,1623.3,3.4576]
[1745313773670,3.0802,1623.4,1622.9,2.76441]
[1745313773871,1.23238,1623.1,1623.0,3.5218]
[1745313774171,1.23238,1623.1,1623.0,44.3218]
[1745313774768,2.92148,1623.1,1623.0,44.3218]
[1745313775168,2.92148,1623.1,1623.0,50.6438]
[1745313775669,2.92148,1623.1,1623.0,51.87618]
[1745313776174,2.92148,1623.1,1623.0,50.6438]
[1745313776573,2.92148,1623.1,1623.0,51.87618]
[1745313777472,2.92148,1623.1,1623.0,50.6438]
[1745313778068,2.92148,1623.1,1623.0,51.87618]
[1745313778668,1.23238,1623.1,1623.0,51.87618]
[1745313779176,4.25,1623.3,1623.0,50.6438]
[1745313779376,4.25,1623.3,1623.2,1.23223]
[1745313779777,4.25,1623.3,1623.2,2.94613]
[1745313779977,5.48215,1623.3,1623.2,2.94613]
[1745313780278,5.48215,1623.3,1623.2,8.0359]
[1745313780674,6.35825,1623.3,1623.2,8.0359]
[1745313781279,6.35825,1623.3,1623.2,2.94613]
[1745313782178,6.35825,1623.3,1623.2,9.26813]
[1745313782478,5.48215,1623.3,1623.2,9.26813]
[1745313783680,4.25,1623.3,1623.2,9.26813]
[1745313785880,5.48215,1623.3,1623.2,9.26813]
[1745313789685,4.25,1623.3,1623.2,9.26813]
[1745313789882,5.48215,1623.3,1623.2,9.26813]
[1745313791282,4.25,1623.3,1623.2,9.26813]
[1745313791779,5.48215,1623.3,1623.2,9.26813]
[1745313793884,4.25,1623.3,1623.2,9.26813]
[1745313794184,5.48215,1623.3,1623.2,9.26813]
[1745313795082,1.23215,1623.3,1623.2,9.26813]
[1745313795685,1.23215,1623.3,1623.2,8.0359]
[1745313795985,1.23215,1623.3,1623.2,9.26813]
[1745313796185,1.23215,1623.3,1623.2,8.0359]
[1745313796575,1.23215,1623.3,1623.2,9.26813]
[1745313798190,1.23215,1623.3,1623.2,8.0359]
[1745313798393,1.23203,1623.5,1623.4,1.23208]
[1745313798581,4.248,1623.6,1623.5,1.23194]
[1745313798889,4.248,1623.6,1623.4,3.01862]
[1745313799083,5.47998,1623.6,1623.5,1.7866]
[1745313799383,7.14128,1623.6,1623.5,8.1086]